lending/lending_fUSD_20250719
["ID","MTS","AMOUNT","RATE_DAILY","PERIOD"]
[373215286,1752909040304,-385.61733579,0.00019446,2]
[373215288,1752909040314,-353.55349256,0.00019452,2]
[373215290,1752909040323,-261.24432453,0.00019452,2]
[373215757,1752909045081,-429.78670982,0.00019452,2]
[373215759,1752909045090,-353.55349256,0.00019453,2]
[373215761,1752909045100,-4179.10799074,0.00019459,2]
[373215763,1752909045111,-385.61733579,0.00019477,2]
[373215765,1752909045120,-385.61733579,0.0001948,2]
[373215767,1752909045129,-1215.72616101,0.00019493,2]
[373215769,1752909045139,-438.054,0.00019496,2]
[373215771,1752909045148,-1215.72616101,0.00019497,2]
[373215773,1752909045157,-480.0,0.00019505,2]
[373215775,1752909045167,-465.73019578,0.00019505,2]
[373215777,1752909045176,-263.59459055,0.00019505,2]
[373215779,1752909045185,-488.86366622,0.00019505,2]
[373215781,1752909045194,-455.0,0.00019505,2]
[373215783,1752909045203,-605.98329035,0.00019505,2]
[373215785,1752909045212,-480.0,0.00019505,2]
[373215787,1752909045222,-485.03574593,0.00019505,2]
[373215789,1752909045231,-374.4925002,0.00019505,2]
[373215791,1752909045240,-480.0,0.00019505,2]
[373215793,1752909045250,-480.0,0.00019505,2]
[373215795,1752909045259,-480.0,0.00019505,2]
[373215797,1752909045268,-480.0,0.00019505,2]
[373215799,1752909045278,-480.0,0.00019505,2]
[373215801,1752909045288,-1354.91,0.00019505,2]
[373215803,1752909045297,-480.0,0.00019505,2]
[373215805,1752909045307,-480.0,0.00019505,2]
[373215807,1752909045316,-801.31,0.00019505,2]
[373215809,1752909045326,-480.0,0.00019505,2]
[373215811,1752909045335,-485.25777577,0.00019505,2]
[373215813,1752909045345,-897.36,0.00019505,2]
[373215815,1752909045355,-480.0,0.00019505,2]
[373215817,1752909045364,-480.0,0.00019505,2]
[373215819,1752909045374,-480.0,0.00019505,2]
[373215821,1752909045383,-539.16,0.00019505,2]
[373215823,1752909045392,-537.88,0.00019505,2]
[373215825,1752909045402,-480.0,0.00019505,2]
[373215826,1752909045411,-480.0,0.00019505,2]
[373215828,1752909045419,-1288.17,0.00019505,2]
[373215830,1752909045428,-480.0,0.00019505,2]
[373215832,1752909045438,-480.0,0.00019505,2]
[373215834,1752909045447,-480.0,0.00019505,2]
[373215836,1752909045456,-480.0,0.00019505,2]
[373215838,1752909045465,-583.06911265,0.00019505,2]
[373215840,1752909045474,-480.0,0.00019505,2]
[373215842,1752909045483,-573.09,0.00019505,2]
[373215844,1752909045492,-499.55260415,0.00019505,2]
[373215846,1752909045501,-843.96,0.00019505,2]
[373215848,1752909045510,-480.0,0.00019505,2]
[373215850,1752909045520,-574.84,0.00019505,2]
[373215852,1752909045529,-480.0,0.00019505,2]
[373215854,1752909045539,-480.0,0.00019505,2]
[373215856,1752909045548,-480.0,0.00019505,2]
[373215858,1752909045557,-480.0,0.00019505,2]
[373215860,1752909045566,-480.0,0.00019505,2]
[373215862,1752909045575,-480.0,0.00019505,2]
[373215864,1752909045585,-1009.52,0.00019505,2]
[373215866,1752909045594,-480.0,0.00019505,2]
[373215869,1752909045605,-1341.18,0.00019505,2]
[373215871,1752909045614,-480.0,0.00019505,2]
[373215873,1752909045623,-465.74586425,0.00019505,2]
[373215875,1752909045633,-480.0,0.00019505,2]
[373215877,1752909045642,-681.25,0.00019505,2]
[373215879,1752909045652,-480.0,0.00019505,2]
[373215881,1752909045661,-480.0,0.00019505,2]
[373215883,1752909045670,-624.91439852,0.00019505,2]
[373215885,1752909045680,-480.0,0.00019505,2]
[373215887,1752909045689,-480.0,0.00019505,2]
[373215889,1752909045698,-480.0,0.00019505,2]
[373215891,1752909045709,-480.0,0.00019505,2]
[373215893,1752909045718,-540.38,0.00019505,2]
[373215895,1752909045727,-480.0,0.00019505,2]
[373215896,1752909045736,-464.83370381,0.00019505,2]
[373215898,1752909045745,-522.57362649,0.00019505,2]
[373215900,1752909045755,-480.0,0.00019505,2]
[373215902,1752909045764,-462.34229898,0.00019505,2]
[373215904,1752909045774,-244.3892732,0.00019505,2]
[373215906,1752909045783,-480.0,0.00019505,2]
[373215908,1752909045796,-480.0,0.00019505,2]
[373215910,1752909045805,-480.0,0.00019505,2]
[373215912,1752909045815,-172.49740739,0.00019505,2]
[373215914,1752909045824,-480.0,0.00019505,2]
[373215916,1752909045835,-1223.95,0.00019505,2]
[373215918,1752909045846,-536.6,0.00019505,2]
[373215920,1752909045856,-480.0,0.00019505,2]
[373215922,1752909045865,-480.0,0.00019505,2]
[373215924,1752909045877,-500.0,0.00019505,2]
[373215926,1752909045887,-480.0,0.00019505,2]
[373215928,1752909045896,-499.34,0.00019505,2]
[373215930,1752909045906,-480.0,0.00019505,2]
[373215932,1752909045916,-480.0,0.00019505,2]
[373215934,1752909045925,-566.64,0.00019505,2]
[373215936,1752909045934,-480.0,0.00019505,2]
[373215938,1752909045944,-480.0,0.00019505,2]
[373215940,1752909045953,-480.0,0.00019505,2]
[373215942,1752909045963,-615.64,0.00019505,2]
[373215944,1752909045972,-460.0,0.00019505,2]
[373215946,1752909045982,-480.0,0.00019505,2]
[373215948,1752909045991,-480.0,0.00019505,2]
[373215950,1752909046000,-480.0,0.00019505,2]
[373215952,1752909046010,-1220.62,0.00019505,2]
[373215954,1752909046018,-480.0,0.00019505,2]
[373215956,1752909046028,-458.29796678,0.00019505,2]
[373215958,1752909046037,-480.0,0.00019505,2]
[373215960,1752909046046,-480.0,0.00019505,2]
[373215962,1752909046055,-480.0,0.00019505,2]
[373215964,1752909046065,-480.0,0.00019505,2]
[373215966,1752909046075,-480.0,0.00019505,2]
[373215968,1752909046084,-480.0,0.00019505,2]
[373215970,1752909046093,-1365.62,0.00019505,2]
[373215972,1752909046103,-276.03518816,0.00019506,2]
[373215974,1752909046113,-541.4,0.00019506,2]
[373215976,1752909046122,-480.0,0.00019506,2]
[373215978,1752909046131,-480.0,0.00019506,2]
[373215979,1752909046141,-480.0,0.00019506,2]
[373215981,1752909046150,-480.0,0.00019506,2]
[373215983,1752909046159,-581.07,0.00019506,2]
[373215985,1752909046169,-480.0,0.00019506,2]
[373215987,1752909046178,-628.11,0.00019506,2]
[373215990,1752909046188,-480.0,0.00019506,2]
[373215992,1752909046198,-480.0,0.00019506,2]
[373215994,1752909046207,-4441.88,0.00019506,2]
[373215996,1752909046216,-1011.37,0.00019506,2]
[373215998,1752909046226,-1953.2,0.00019506,2]
[373215999,1752909046235,-480.0,0.00019506,2]
[373216001,1752909046244,-631.07,0.00019506,2]
[373216003,1752909046253,-480.0,0.00019506,2]
[373216005,1752909046263,-480.0,0.00019506,2]
[373216007,1752909046272,-480.0,0.00019506,2]
[373216009,1752909046280,-725.13,0.00019506,2]
[373216011,1752909046290,-480.0,0.00019506,2]
[373216012,1752909046299,-568.26,0.00019506,2]
[373216013,1752909046308,-2076.63,0.00019506,2]
[373216014,1752909046318,-480.0,0.00019506,2]
[373216015,1752909046327,-480.0,0.00019506,2]
[373216016,1752909046336,-480.0,0.00019506,2]
[373216017,1752909046345,-480.0,0.00019506,2]
[373216018,1752909046356,-480.0,0.00019506,2]
[373216019,1752909046365,-480.0,0.00019506,2]
[373216020,1752909046374,-480.0,0.00019506,2]
[373216022,1752909046383,-1166.0,0.00019511,2]
[373216023,1752909046392,-330.38337552,0.00019528,2]
[373216025,1752909046402,-150.0,0.00019603,2]
[373216027,1752909046411,-384.19,0.00019605,2]
[373216029,1752909046419,-590.23,0.00019614,2]
[373216031,1752909046429,-558.22407504,0.00019614,2]
[373216034,1752909046438,-480.0,0.00019614,2]
[373216036,1752909046448,-480.0,0.00019614,2]
[373216037,1752909046458,-726.16,0.00019614,2]
[373216039,1752909046467,-485.16721123,0.00019614,2]
[373216041,1752909046476,-600.57,0.00019615,2]
[373216043,1752909046485,-480.0,0.00019615,2]
[373216045,1752909046494,-480.0,0.00019615,2]
[373216047,1752909046504,-480.0,0.00019615,2]
[373216049,1752909046513,-480.0,0.00019615,2]
[373216051,1752909046523,-447.60873216,0.00019615,2]
[373216053,1752909046532,-487.26239917,0.00019615,2]
[373216055,1752909046541,-462.02463811,0.00019615,2]
[373216057,1752909046551,-502.12846168,0.00019615,2]
[373216059,1752909046560,-480.0,0.00019615,2]
[373216061,1752909046569,-496.63813897,0.00019615,2]
[373216063,1752909046579,-488.80939263,0.00019615,2]
[373216065,1752909046589,-483.1968155,0.00019615,2]
[373216067,1752909046599,-337.72,0.00019615,2]
[373216069,1752909046607,-480.0,0.00019615,2]
[373216071,1752909046616,-236.49,0.00019615,2]
[373216073,1752909046625,-207.75540983,0.00019615,2]
[373216075,1752909046635,-480.0,0.00019615,2]
[373216077,1752909046645,-461.4020093,0.00019615,2]
[373216079,1752909046654,-480.0,0.00019615,2]
[373216081,1752909046663,-187.19,0.00019615,2]
[373216083,1752909046672,-480.0,0.00019615,2]
[373216085,1752909046681,-480.0,0.00019615,2]
[373216087,1752909046690,-480.0,0.00019615,2]
[373216089,1752909046699,-569.00460871,0.00019615,2]
[373216091,1752909046709,-480.0,0.00019615,2]
[373216093,1752909046718,-1354.91,0.00019615,2]
[373216095,1752909046727,-480.0,0.00019615,2]
[373216097,1752909046736,-154.82993523,0.00019615,2]
[373216099,1752909046746,-801.31,0.00019615,2]
[373216101,1752909046755,-480.0,0.00019615,2]
[373216103,1752909046764,-480.0,0.00019615,2]
[373216105,1752909046773,-897.36,0.00019615,2]
[373216107,1752909046783,-480.0,0.00019615,2]
[373216109,1752909046793,-480.0,0.00019615,2]
[373216111,1752909046803,-480.0,0.00019615,2]
[373216113,1752909046812,-495.52,0.00019615,2]
[373216115,1752909046822,-539.16,0.00019615,2]
[373216117,1752909046831,-480.0,0.00019615,2]
[373216119,1752909046840,-472.67606781,0.00019615,2]
[373216121,1752909046849,-491.76146892,0.00019615,2]
[373216123,1752909046859,-1288.17,0.00019615,2]
[373216125,1752909046868,-480.0,0.00019615,2]
[373216126,1752909046877,-480.0,0.00019615,2]
[373216128,1752909046887,-480.0,0.00019615,2]
[373216130,1752909046896,-480.0,0.00019615,2]
[373216132,1752909046906,-480.0,0.00019615,2]
[373216135,1752909046915,-480.0,0.00019615,2]
[373216136,1752909046925,-573.09,0.00019615,2]
[373216138,1752909046934,-480.0,0.00019615,2]
[373216140,1752909046943,-843.96,0.00019615,2]
[373216142,1752909046952,-480.0,0.00019615,2]
[373216144,1752909046962,-480.0,0.00019615,2]
[373216146,1752909046971,-480.0,0.00019615,2]
[373216148,1752909046980,-480.0,0.00019615,2]
[373216150,1752909046990,-480.0,0.00019615,2]
[373216152,1752909046999,-564.66165048,0.00019615,2]
[373216154,1752909047009,-480.0,0.00019615,2]
[373216156,1752909047019,-1009.52,0.00019615,2]
[373216158,1752909047028,-480.0,0.00019615,2]
[373216160,1752909047038,-1341.18,0.00019615,2]
[373216162,1752909047047,-366.00712568,0.00019615,2]
[373216164,1752909047056,-480.0,0.00019615,2]
[373216166,1752909047066,-480.0,0.00019615,2]
[373216168,1752909047075,-681.25,0.00019615,2]
[373216170,1752909047085,-480.0,0.00019615,2]
[373216172,1752909047094,-480.0,0.00019615,2]
[373216174,1752909047103,-480.0,0.00019615,2]
[373216176,1752909047113,-480.0,0.00019615,2]
[373216178,1752909047123,-540.38,0.00019615,2]
[373216180,1752909047132,-480.0,0.00019615,2]
[373216183,1752909047141,-480.0,0.00019615,2]
[373216184,1752909047150,-480.0,0.00019615,2]
[373216186,1752909047159,-480.0,0.00019615,2]
[373216188,1752909047169,-480.0,0.00019615,2]
[373216190,1752909047179,-480.0,0.00019615,2]
[373216192,1752909047188,-480.0,0.00019615,2]
[373216194,1752909047197,-480.0,0.00019615,2]
[373216197,1752909047206,-500.79544799,0.00019615,2]
[373216198,1752909047215,-480.0,0.00019615,2]
[373216201,1752909047225,-1223.95,0.00019615,2]
[373216203,1752909047235,-390.43335192,0.00019615,2]
[373216205,1752909047244,-536.6,0.00019615,2]
[373216207,1752909047253,-480.0,0.00019615,2]
[373216208,1752909047263,-480.0,0.00019615,2]
[373216210,1752909047272,-480.0,0.00019615,2]
[373216212,1752909047281,-480.0,0.00019615,2]
[373216215,1752909047290,-499.34,0.00019615,2]
[373216217,1752909047303,-480.0,0.00019615,2]
[373216219,1752909047312,-566.64,0.00019615,2]
[373216221,1752909047321,-210.68,0.00019615,2]
[373216223,1752909047330,-480.0,0.00019615,2]
[373216225,1752909047339,-615.64,0.00019615,2]
[373216227,1752909047348,-480.0,0.00019615,2]
[373216229,1752909047357,-480.0,0.00019615,2]
[373216231,1752909047366,-480.0,0.00019615,2]
[373216233,1752909047376,-1220.62,0.00019615,2]
[373216235,1752909047385,-480.0,0.00019615,2]
[373216237,1752909047394,-480.0,0.00019615,2]
[373216239,1752909047403,-480.0,0.00019615,2]
[373216241,1752909047412,-480.0,0.00019615,2]
[373216243,1752909047422,-480.0,0.00019615,2]
[373216245,1752909047431,-480.0,0.00019615,2]
[373216247,1752909047440,-234.97209272,0.00019615,2]
[373216249,1752909047449,-1365.62,0.00019615,2]
[373216251,1752909047458,-480.0,0.00019616,2]
[373216253,1752909047468,-480.0,0.00019616,2]
[373216255,1752909047477,-480.0,0.00019616,2]
[373216257,1752909047486,-407.72690064,0.00019616,2]
[373216259,1752909047496,-581.07,0.00019616,2]
[373216261,1752909047505,-628.11,0.00019616,2]
[373216263,1752909047514,-480.0,0.00019616,2]
[373216265,1752909047524,-480.0,0.00019616,2]
[373216267,1752909047533,-4441.88,0.00019616,2]
[373216269,1752909047543,-480.0,0.00019616,2]
[373216271,1752909047552,-1011.37,0.00019616,2]
[373216273,1752909047561,-1953.2,0.00019616,2]
[373216275,1752909047571,-480.0,0.00019616,2]
[373216277,1752909047580,-631.07,0.00019616,2]
[373216279,1752909047589,-480.0,0.00019616,2]
[373216281,1752909047599,-480.0,0.00019616,2]
[373216283,1752909047608,-480.0,0.00019616,2]
[373216285,1752909047617,-725.13,0.00019616,2]
[373216287,1752909047627,-480.0,0.00019616,2]
[373216289,1752909047636,-568.26,0.00019616,2]
[373216291,1752909047646,-2076.63,0.00019616,2]
[373216293,1752909047655,-480.0,0.00019616,2]
[373216295,1752909047665,-480.0,0.00019616,2]
[373216297,1752909047674,-480.0,0.00019616,2]
[373216299,1752909047683,-480.0,0.00019616,2]
[373216301,1752909047693,-480.0,0.00019616,2]
[373216303,1752909047703,-480.0,0.00019616,2]
[373216305,1752909047712,-480.0,0.00019616,2]
[373216307,1752909047721,-232.0,0.0001962,2]
[373216309,1752909047731,-330.38337552,0.0001966,2]
[373216311,1752909047740,-150.0,0.00019694,2]
[373216312,1752909047749,-192.99,0.00019703,2]
[373216314,1752909047759,-500.0,0.00019716,2]
[373216316,1752909047768,-480.0,0.00019724,2]
[373216318,1752909047777,-480.0,0.00019724,2]
[373216320,1752909047787,-480.0,0.00019724,2]
[373216322,1752909047801,-480.0,0.00019724,2]
[373216324,1752909047811,-480.0,0.00019724,2]
[373216326,1752909047820,-480.0,0.00019724,2]
[373216328,1752909047829,-480.0,0.00019724,2]
[373216330,1752909047842,-1354.91,0.00019724,2]
[373216333,1752909047852,-480.0,0.00019724,2]
[373216335,1752909047864,-801.31,0.00019724,2]
[373216337,1752909047874,-897.36,0.00019724,2]
[373216339,1752909047885,-480.0,0.00019724,2]
[373216341,1752909047894,-480.0,0.00019724,2]
[373216343,1752909047904,-539.16,0.00019724,2]
[373216345,1752909047913,-480.0,0.00019724,2]
[373216347,1752909047922,-1288.17,0.00019724,2]
[373216349,1752909047932,-480.0,0.00019724,2]
[373216351,1752909047942,-228.8,0.00019724,2]
[373216353,1752909047951,-480.0,0.00019724,2]
[373216355,1752909047961,-480.0,0.00019724,2]
[373216357,1752909047970,-573.09,0.00019724,2]
[373216359,1752909047980,-843.96,0.00019724,2]
[373216360,1752909047989,-480.0,0.00019724,2]
[373216363,1752909047999,-480.0,0.00019724,2]
[373216365,1752909048008,-480.0,0.00019724,2]
[373216367,1752909048018,-480.0,0.00019724,2]
[373216369,1752909048028,-1009.52,0.00019724,2]
[373216371,1752909048037,-480.0,0.00019724,2]
[373216373,1752909048047,-1341.18,0.00019724,2]
[373216375,1752909048056,-480.0,0.00019724,2]
[373216377,1752909048065,-681.25,0.00019724,2]
[373216378,1752909048075,-480.0,0.00019724,2]
[373216380,1752909048084,-480.0,0.00019724,2]
[373216383,1752909048094,-480.0,0.00019724,2]
[373216385,1752909048104,-480.0,0.00019724,2]
[373216386,1752909048116,-540.38,0.00019724,2]
[373216388,1752909048125,-480.0,0.00019724,2]
[373216391,1752909048135,-480.0,0.00019724,2]
[373216393,1752909048145,-480.0,0.00019724,2]
[373216395,1752909048155,-480.0,0.00019724,2]
[373216397,1752909048164,-480.0,0.00019724,2]
[373216398,1752909048173,-480.0,0.00019724,2]
[373216401,1752909048183,-1223.95,0.00019724,2]
[373216403,1752909048192,-536.6,0.00019724,2]
[373216405,1752909048202,-480.0,0.00019724,2]
[373216407,1752909048211,-480.0,0.00019724,2]
[373216409,1752909048221,-480.0,0.00019724,2]
[373216411,1752909048230,-480.0,0.00019724,2]
[373216413,1752909048239,-499.34,0.00019724,2]
[373216415,1752909048249,-480.0,0.00019724,2]
[373216417,1752909048258,-566.64,0.00019724,2]
[373216419,1752909048268,-480.0,0.00019724,2]
[373216421,1752909048278,-615.64,0.00019724,2]
[373216423,1752909048287,-480.0,0.00019724,2]
[373216425,1752909048296,-480.0,0.00019724,2]
[373216427,1752909048306,-480.0,0.00019724,2]
[373216429,1752909048315,-1220.62,0.00019724,2]
[373216431,1752909048325,-480.0,0.00019724,2]
[373216433,1752909048334,-559.44852096,0.00019724,2]
[373216434,1752909048343,-480.0,0.00019724,2]
[373216435,1752909048353,-480.0,0.00019724,2]
[373216436,1752909048364,-480.0,0.00019724,2]
[373216437,1752909048374,-480.0,0.00019724,2]
[373216438,1752909048383,-480.0,0.00019724,2]
[373216439,1752909048392,-726.16,0.00019724,2]
[373216440,1752909048402,-1365.62,0.00019724,2]
[373216441,1752909048411,-480.0,0.00019725,2]
[373216442,1752909048421,-489.31510231,0.00019725,2]
[373216443,1752909048430,-469.43,0.00019725,2]
[373216444,1752909048441,-480.0,0.00019725,2]
[373216445,1752909048449,-480.0,0.00019725,2]
[373216446,1752909048458,-412.87542135,0.00019725,2]
[373216448,1752909048467,-480.0,0.00019726,2]
[373216450,1752909048476,-480.0,0.00019726,2]
[373216452,1752909048486,-480.0,0.00019726,2]
[373216454,1752909048495,-581.07,0.00019726,2]
[373216456,1752909048505,-628.11,0.00019726,2]
[373216458,1752909048515,-480.0,0.00019726,2]
[373216460,1752909048524,-480.0,0.00019726,2]
[373216462,1752909048535,-4441.88,0.00019726,2]
[373216464,1752909048544,-480.0,0.00019726,2]
[373216466,1752909048554,-1011.37,0.00019726,2]
[373216468,1752909048564,-1953.2,0.00019726,2]
[373216470,1752909048573,-480.0,0.00019726,2]
[373216472,1752909048583,-631.07,0.00019726,2]
[373216474,1752909048592,-480.0,0.00019726,2]
[373216476,1752909048602,-610.28837277,0.00019726,2]
[373216478,1752909048612,-480.0,0.00019726,2]
[373216480,1752909048621,-725.13,0.00019726,2]
[373216482,1752909048631,-480.0,0.00019726,2]
[373216484,1752909048640,-568.26,0.00019726,2]
[373216486,1752909048650,-2076.63,0.00019726,2]
[373216488,1752909048659,-480.0,0.00019726,2]
[373216490,1752909048669,-480.0,0.00019726,2]
[373216492,1752909048678,-480.0,0.00019726,2]
[373216494,1752909048687,-480.0,0.00019726,2]
[373216496,1752909048697,-480.0,0.00019726,2]
[373216498,1752909048706,-480.0,0.00019726,2]
[373216500,1752909048716,-480.0,0.00019726,2]
[373216502,1752909048725,-500.0,0.00019781,2]
[373216504,1752909048735,-1000.0,0.00019781,2]
[373216506,1752909048744,-330.38337552,0.00019791,2]
[373216508,1752909048754,-500.0,0.000198,2]
[373216510,1752909048763,-5281.48019521,0.00019808,2]
[373216512,1752909048773,-500.0,0.00019833,2]
[373216529,1752909048922,-480.0,0.00019833,2]
[373216531,1752909048930,-726.16,0.00019833,2]
[373216533,1752909048938,-480.0,0.00019834,2]
[373216535,1752909048947,-150.0,0.00019834,2]
[373216537,1752909048955,-150.0,0.00019834,2]
[373216539,1752909048963,-8878.92952175,0.00019834,2]
[373216541,1752909048972,-150.0,0.00019834,2]
[373216542,1752909048979,-2773.304774,0.00019834,2]
[373216544,1752909048987,-578.44418667,0.00019834,2]
[373216546,1752909048995,-150.0,0.00019834,2]
[373216548,1752909049003,-5202.62542987,0.00019834,2]
[373216550,1752909049011,-150.0,0.00019834,2]
[373216552,1752909049019,-68224.9663462,0.00019834,2]
[373216554,1752909049026,-480.0,0.00019834,2]
[373216556,1752909049033,-172.754,0.00019834,2]
[373216558,1752909049042,-3115.992,0.00019834,2]
[373216560,1752909049050,-480.0,0.00019834,2]
[373216562,1752909049057,-480.0,0.00019834,2]
[373216564,1752909049066,-563.18,0.00019834,2]
[373216566,1752909049075,-518.14,0.00019834,2]
[373216568,1752909049083,-480.0,0.00019834,2]
[373216570,1752909049093,-480.0,0.00019834,2]
[373216573,1752909049102,-480.0,0.00019834,2]
[373216574,1752909049110,-480.0,0.00019834,2]
[373216576,1752909049117,-424.56227133,0.00019834,2]
[373216578,1752909049124,-480.0,0.00019834,2]
[373216580,1752909049131,-480.0,0.00019834,2]
[373216582,1752909049139,-480.0,0.00019834,2]
[373216584,1752909049148,-792.72,0.00019834,2]
[373216586,1752909049156,-480.0,0.00019834,2]
[373216588,1752909049164,-600.12,0.00019834,2]
[373216591,1752909049173,-480.0,0.00019834,2]
[373216593,1752909049182,-1354.91,0.00019834,2]
[373216595,1752909049190,-480.0,0.00019834,2]
[373216597,1752909049199,-593.76555938,0.00019834,2]
[373216599,1752909049206,-764.91,0.00019834,2]
[373216601,1752909049214,-480.0,0.00019834,2]
[373216603,1752909049223,-801.31,0.00019834,2]
[373216605,1752909049231,-1230.98,0.00019834,2]
[373216607,1752909049239,-480.0,0.00019834,2]
[373216609,1752909049246,-897.36,0.00019834,2]
[373216611,1752909049254,-385.54,0.00019834,2]
[373216613,1752909049264,-480.0,0.00019834,2]
[373216615,1752909049271,-480.0,0.00019834,2]
[373216617,1752909049278,-718.18,0.00019834,2]
[373216619,1752909049287,-606.55,0.00019834,2]
[373216621,1752909049296,-480.0,0.00019834,2]
[373216623,1752909049305,-539.16,0.00019834,2]
[373216625,1752909049315,-480.0,0.00019834,2]
[373216627,1752909049324,-1288.17,0.00019834,2]
[373216629,1752909049334,-921.82,0.00019834,2]
[373216631,1752909049343,-480.0,0.00019834,2]
[373216633,1752909049352,-480.0,0.00019834,2]
[373216635,1752909049363,-480.0,0.00019834,2]
[373216637,1752909049372,-480.0,0.00019834,2]
[373216639,1752909049382,-573.09,0.00019834,2]
[373216641,1752909049391,-843.96,0.00019834,2]
[373216643,1752909049401,-480.0,0.00019834,2]
[373216645,1752909049410,-480.0,0.00019834,2]
[373216647,1752909049419,-534.74,0.00019834,2]
[373216649,1752909049429,-480.0,0.00019834,2]
[373216651,1752909049438,-480.0,0.00019834,2]
[373216653,1752909049448,-480.0,0.00019834,2]
[373216655,1752909049458,-7391.1,0.00019834,2]
[373216657,1752909049468,-637.96,0.00019834,2]
[373216659,1752909049477,-480.0,0.00019834,2]
[373216661,1752909049487,-875.35,0.00019834,2]
[373216663,1752909049497,-1009.52,0.00019834,2]
[373216665,1752909049506,-480.0,0.00019834,2]
[373216667,1752909049516,-1341.18,0.00019834,2]
[373216669,1752909049526,-937.01,0.00019834,2]
[373216671,1752909049535,-480.0,0.00019834,2]
[373216673,1752909049544,-480.0,0.00019834,2]
[373216675,1752909049554,-681.25,0.00019834,2]
[373216677,1752909049563,-480.0,0.00019834,2]
[373216679,1752909049573,-480.0,0.00019834,2]
[373216681,1752909049582,-480.0,0.00019834,2]
[373216683,1752909049592,-480.0,0.00019834,2]
[373216685,1752909049601,-480.0,0.00019834,2]
[373216687,1752909049611,-480.0,0.00019834,2]
[373216689,1752909049620,-540.38,0.00019834,2]
[373216691,1752909049630,-480.0,0.00019834,2]
[373216693,1752909049640,-480.0,0.00019834,2]
[373216695,1752909049650,-480.0,0.00019834,2]
[373216697,1752909049660,-480.0,0.00019834,2]
[373216699,1752909049671,-835.27,0.00019834,2]
[373216701,1752909049682,-480.0,0.00019834,2]
[373216703,1752909049692,-1223.95,0.00019834,2]
[373216705,1752909049702,-536.6,0.00019834,2]
[373216707,1752909049712,-480.0,0.00019834,2]
[373216709,1752909049721,-480.0,0.00019834,2]
[373216711,1752909049731,-480.0,0.00019834,2]
[373216713,1752909049741,-499.34,0.00019834,2]
[373216715,1752909049751,-480.0,0.00019834,2]
[373216717,1752909049761,-571.22,0.00019834,2]
[373216719,1752909049771,-480.0,0.00019834,2]
[373216721,1752909049781,-566.64,0.00019834,2]
[373216723,1752909049794,-480.0,0.00019834,2]
[373216725,1752909049805,-615.64,0.00019834,2]
[373216727,1752909049814,-480.0,0.00019834,2]
[373216729,1752909049824,-480.0,0.00019834,2]
[373216731,1752909049835,-1220.62,0.00019834,2]
[373216733,1752909049845,-480.0,0.00019834,2]
[373216735,1752909049854,-480.0,0.00019834,2]
[373216737,1752909049867,-480.0,0.00019834,2]
[373216739,1752909049876,-524.19,0.00019834,2]